[Event "Veteran-SM 65+ 2025"]
[Site "Uppsala, Sweden"]
[Date "2025.06.29"]
[Round "2.3"]
[White "Wedin, Svante"]
[Black "Malmdin, Nils-Ake"]
[Result "1-0"]
[TimeControl "90 min for 40 move + 30 min with an increment of 30 sec starting move 1"]
[BlackTitle "FM"]
[WhiteFideId "1711989"]
[BlackFideId "1701584"]
[WhiteElo "1864"]
[BlackElo "2103"]

1. e4 {[%clk 01:30:57]} {[%emt 00:00:03]} d5 {[%clk 01:30:09]} {[%emt
00:00:50]} 2. exd5 {[%clk 01:30:34]} {[%emt 00:00:55]} Nf6 {[%clk 01:30:24]}
{[%emt 00:00:13]} 3. Bb5+ {[%clk 01:30:50]} {[%emt 00:00:14]} Bd7 {[%clk
01:30:30]} {[%emt 00:00:23]} 4. Bc4 {[%clk 01:31:05]} {[%emt 00:00:17]} Bg4
{[%clk 01:22:20]} {[%emt 00:08:39]} 5. f3 {[%clk 01:30:01]} {[%emt 00:01:34]}
Bf5 {[%clk 01:22:25]} {[%emt 00:00:24]} 6. Nc3 {[%clk 01:29:14]} {[%emt
00:01:19]} a6 {[%clk 01:22:27]} {[%emt 00:00:27]} 7. a4 {[%clk 01:28:12]}
{[%emt 00:01:33]} Nbd7 {[%clk 01:03:09]} {[%emt 00:19:48]} 8. Nge2 {[%clk
01:26:13]} {[%emt 00:02:28]} Nb6 {[%clk 01:02:35]} {[%emt 00:01:04]} 9. Bb3
{[%clk 01:20:24]} {[%emt 00:06:20]} Nbxd5 {[%clk 01:02:10]} {[%emt 00:00:53]}
10. d4 {[%clk 01:17:09]} {[%emt 00:03:47]} e6 {[%clk 01:00:02]} {[%emt
00:02:37]} 11. O-O {[%clk 01:14:26]} {[%emt 00:03:14]} Bd6 {[%clk 00:53:39]}
{[%emt 00:06:53]} 12. Qe1 {[%clk 01:04:58]} {[%emt 00:09:58]} Nb4 {[%clk
00:49:41]} {[%emt 00:04:27]} 13. Qd1 {[%clk 00:49:58]} {[%emt 00:15:31]} c5
{[%clk 00:46:51]} {[%emt 00:03:19]} 14. Bg5 {[%clk 00:42:55]} {[%emt 00:07:34]}
c4 {[%clk 00:37:12]} {[%emt 00:10:08]} 15. Bxc4 {[%clk 00:41:07]} {[%emt
00:02:18]} Bxc2 {[%clk 00:36:55]} {[%emt 00:00:47]} 16. Qd2 {[%clk 00:40:02]}
{[%emt 00:01:36]} Qc7 {[%clk 00:36:57]} {[%emt 00:00:27]} 17. Bxf6 {[%clk
00:34:46]} {[%emt 00:05:47]} gxf6 {[%clk 00:36:54]} {[%emt 00:00:33]} 18. b3
{[%clk 00:34:51]} {[%emt 00:00:25]} Bxh2+ {[%clk 00:36:51]} {[%emt 00:00:32]}
19. Kh1 {[%clk 00:34:33]} {[%emt 00:00:48]} Bd6 {[%clk 00:36:25]} {[%emt
00:00:55]} 20. Rac1 {[%clk 00:33:54]} {[%emt 00:01:10]} Bg6 {[%clk 00:35:15]}
{[%emt 00:01:40]} 21. Ne4 {[%clk 00:33:12]} {[%emt 00:01:14]} Qe7 {[%clk
00:34:53]} {[%emt 00:00:50]} 22. Qh6 {[%clk 00:30:22]} {[%emt 00:03:20]} Rg8
{[%clk 00:27:56]} {[%emt 00:07:27]} 23. Qh4 {[%clk 00:24:50]} {[%emt 00:06:02]}
Bxe4 {[%clk 00:23:28]} {[%emt 00:04:59]} 24. fxe4 {[%clk 00:22:23]} {[%emt
00:02:56]} Rg5 {[%clk 00:22:05]} {[%emt 00:01:52]} 25. Nf4 {[%clk 00:18:37]}
{[%emt 00:04:18]} Bxf4 {[%clk 00:15:01]} {[%emt 00:07:34]} 26. Qxf4 {[%clk
00:17:22]} {[%emt 00:01:45]} Rg6 {[%clk 00:11:51]} {[%emt 00:03:39]} 27. d5
{[%clk 00:13:33]} {[%emt 00:04:20]} e5 {[%clk 00:11:49]} {[%emt 00:00:32]} 28.
Qe3 {[%clk 00:12:43]} {[%emt 00:01:19]} Qd6 {[%clk 00:11:38]} {[%emt 00:00:40]}
29. Be2 {[%clk 00:12:27]} {[%emt 00:00:47]} Kd7 {[%clk 00:07:53]} {[%emt
00:04:13]} 30. Bh5 {[%clk 00:10:59]} {[%emt 00:02:00]} Rg5 {[%clk 00:07:22]}
{[%emt 00:01:00]} 31. Bxf7 {[%clk 00:10:48]} {[%emt 00:00:43]} Ke7 {[%clk
00:07:15]} {[%emt 00:00:36]} 32. Be6 {[%clk 00:10:31]} {[%emt 00:00:48]} Rh5+
{[%clk 00:05:53]} {[%emt 00:01:52]} 33. Kg1 {[%clk 00:10:18]} {[%emt 00:00:44]}
Rg5 {[%clk 00:06:02]} {[%emt 00:00:20]} 34. Rc8 {[%clk 00:06:59]} {[%emt
00:03:48]} Rxc8 {[%clk 00:05:27]} {[%emt 00:01:06]} 35. Bxc8 {[%clk 00:07:28]}
b6 {[%clk 00:05:29]} {[%emt 00:00:28]} 36. Be6 {[%clk 00:05:40]} {[%emt
00:02:19]} Qc5 {[%clk 00:05:20]} {[%emt 00:00:38]} 37. Qxc5+ {[%clk 00:03:36]}
{[%emt 00:02:34]} bxc5 {[%clk 00:05:48]} {[%emt 00:00:02]} 38. Rf3 {[%clk
00:02:34]} {[%emt 00:01:31]} h6 {[%clk 00:02:54]} {[%emt 00:03:23]} 39. g4
{[%clk 00:01:36]} {[%emt 00:01:30]} h5 {[%clk 00:02:49]} {[%emt 00:00:35]} 40.
Rh3 {[%clk 00:01:38]} {[%emt 00:00:28]} Rxg4+ {[%clk 00:00:36]} {[%emt
00:02:43]} 41. Bxg4 {[%clk 00:01:37]} {[%emt 00:00:31]} hxg4 {[%clk 00:01:04]}
{[%emt 00:00:02]} 42. Rh7+ {[%clk 00:01:38]} {[%emt 00:00:28]} Kd6 {[%clk
00:01:02]} {[%emt 00:00:32]} 43. Rf7 {[%clk 00:30:04]} {[%emt 00:02:04]} 1-0

[Event "Veteran-SM 65+ 2025"]
[Site "Uppsala, Sweden"]
[Date "2025.06.29"]
[Round "2.4"]
[White "Sigeman, Johan"]
[Black "Vrabec, Josip"]
[Result "1/2-1/2"]
[TimeControl "90 min for 40 move + 30 min with an increment of 30 sec starting move 1"]
[WhiteFideId "1705601"]
[BlackFideId "1714953"]
[WhiteElo "2012"]
[BlackElo "1908"]

1. c4 {[%clk 01:30:52]} {[%emt 00:00:08]} Nf6 {[%clk 01:30:38]} {[%emt
00:00:22]} 2. Nc3 {[%clk 01:30:56]} {[%emt 00:00:26]} c5 {[%clk 01:30:44]}
{[%emt 00:00:23]} 3. Nf3 {[%clk 01:31:12]} {[%emt 00:00:14]} Nc6 {[%clk
01:30:49]} {[%emt 00:00:26]} 4. d4 {[%clk 01:31:08]} {[%emt 00:00:34]} cxd4
{[%clk 01:31:00]} {[%emt 00:00:19]} 5. Nxd4 {[%clk 01:31:34]} {[%emt 00:00:04]}
Nxd4 {[%clk 01:29:24]} {[%emt 00:02:06]} 6. Qxd4 {[%clk 01:32:01]} {[%emt
00:00:03]} g6 {[%clk 01:29:30]} {[%emt 00:00:25]} 7. g3 {[%clk 01:30:43]}
{[%emt 00:01:48]} Bg7 {[%clk 01:29:27]} {[%emt 00:00:33]} 8. Bg2 {[%clk
01:30:56]} {[%emt 00:00:17]} O-O {[%clk 01:29:30]} {[%emt 00:00:26]} 9. O-O
{[%clk 01:31:12]} {[%emt 00:00:15]} d6 {[%clk 01:29:17]} {[%emt 00:00:43]} 10.
Qd2 {[%clk 01:28:56]} {[%emt 00:02:45]} Rb8 {[%clk 01:28:39]} {[%emt 00:01:08]}
11. b3 {[%clk 01:28:38]} {[%emt 00:00:49]} Bd7 {[%clk 01:27:31]} {[%emt
00:01:38]} 12. Bb2 {[%clk 01:28:06]} {[%emt 00:01:02]} Bc6 {[%clk 01:27:36]}
{[%emt 00:00:25]} 13. e4 {[%clk 01:24:19]} {[%emt 00:04:17]} a6 {[%clk
01:23:23]} {[%emt 00:04:42]} 14. Rad1 {[%clk 01:21:34]} {[%emt 00:03:16]} Qc7
{[%clk 01:15:50]} {[%emt 00:08:01]} 15. Rfe1 {[%clk 01:16:03]} {[%emt
00:06:03]} Rfd8 {[%clk 01:13:42]} {[%emt 00:02:36]} 16. Nd5 {[%clk 01:11:32]}
{[%emt 00:05:02]} Bxd5 {[%clk 01:12:59]} {[%emt 00:01:14]} 17. exd5 {[%clk
01:06:38]} {[%emt 00:05:23]} b5 {[%clk 01:12:43]} {[%emt 00:00:47]} 18. cxb5
{[%clk 01:00:46]} {[%emt 00:06:22]} axb5 {[%clk 01:10:00]} {[%emt 00:03:13]} 19.
Rc1 {[%clk 00:57:53]} {[%emt 00:03:23]} Qd7 {[%clk 01:09:36]} {[%emt 00:00:52]}
20. Rc6 {[%clk 00:51:59]} {[%emt 00:06:26]} Ne8 {[%clk 01:05:12]} {[%emt
00:04:53]} 21. Bxg7 {[%clk 00:47:53]} {[%emt 00:04:37]} Kxg7 {[%clk 01:05:15]}
{[%emt 00:00:27]} 22. Rec1 {[%clk 00:39:33]} {[%emt 00:08:49]} f6 {[%clk
01:04:41]} {[%emt 00:01:03]} 23. h4 {[%clk 00:38:17]} {[%emt 00:01:47]} Ra8
{[%clk 01:02:51]} {[%emt 00:02:20]} 24. R1c2 {[%clk 00:36:32]} {[%emt
00:02:15]} Ra7 {[%clk 00:55:43]} {[%emt 00:07:37]} 25. Bf1 {[%clk 00:27:58]}
{[%emt 00:09:05]} Rb8 {[%clk 00:55:09]} {[%emt 00:01:04]} 26. Kh2 {[%clk
00:27:07]} {[%emt 00:01:22]} Rab7 {[%clk 00:49:57]} {[%emt 00:05:41]} 27. Bh3
{[%clk 00:22:37]} {[%emt 00:05:00]} f5 {[%clk 00:47:14]} {[%emt 00:03:12]} 28.
Qd4+ {[%clk 00:18:23]} {[%emt 00:04:46]} Nf6 {[%clk 00:47:28]} {[%emt
00:00:15]} 29. f3 {[%clk 00:18:01]} {[%emt 00:00:53]} h5 {[%clk 00:47:33]}
{[%emt 00:00:25]} 30. b4 {[%clk 00:16:42]} {[%emt 00:01:49]} Kf7 {[%clk
00:45:12]} {[%emt 00:02:50]} 31. Bf1 {[%clk 00:15:52]} {[%emt 00:01:20]} Qd8
{[%clk 00:44:56]} {[%emt 00:00:47]} 32. Re2 {[%clk 00:14:07]} {[%emt 00:02:14]}
Nd7 {[%clk 00:42:43]} {[%emt 00:02:43]} 33. f4 {[%clk 00:10:40]} {[%emt
00:03:58]} Nf6 {[%clk 00:42:40]} {[%emt 00:00:33]} 1/2-1/2

[Event "Veteran-SM 65+ 2025"]
[Site "Uppsala, Sweden"]
[Date "2025.06.29"]
[Round "2.5"]
[White "Franchuck, Ivan"]
[Black "Ranby, Hans"]
[Result "1-0"]
[TimeControl "90 min for 40 move + 30 min with an increment of 30 sec starting move 1"]
[WhiteFideId "14140187"]
[BlackFideId "1710311"]
[WhiteElo "2006"]
[BlackElo "1868"]

1. Nf3 {[%clk 01:30:56]} {[%emt 00:00:03]} Nf6 {[%clk 01:30:38]} {[%emt
00:00:23]} 2. c4 {[%clk 01:31:13]} {[%emt 00:00:12]} b6 {[%clk 01:30:58]}
{[%emt 00:00:11]} 3. g3 {[%clk 01:31:33]} {[%emt 00:00:09]} Bb7 {[%clk
01:31:19]} {[%emt 00:00:09]} 4. Bg2 {[%clk 01:31:56]} {[%emt 00:00:07]} e6
{[%clk 01:31:18]} {[%emt 00:00:31]} 5. O-O {[%clk 01:32:11]} {[%emt 00:00:15]}
Be7 {[%clk 01:31:22]} {[%emt 00:00:26]} 6. Nc3 {[%clk 01:32:22]} {[%emt
00:00:20]} O-O {[%clk 01:31:34]} {[%emt 00:00:17]} 7. d4 {[%clk 01:31:01]}
{[%emt 00:01:51]} d5 {[%clk 01:31:37]} {[%emt 00:00:27]} 8. Ne5 {[%clk
01:30:05]} {[%emt 00:01:25]} Nbd7 {[%clk 01:29:31]} {[%emt 00:02:37]} 9. cxd5
{[%clk 01:23:46]} {[%emt 00:06:49]} Nxe5 {[%clk 01:27:14]} {[%emt 00:02:48]} 10.
dxe5 {[%clk 01:23:04]} {[%emt 00:01:11]} Nxd5 {[%clk 01:27:12]} {[%emt
00:00:32]} 11. Ne4 {[%clk 01:23:08]} {[%emt 00:00:25]} c5 {[%clk 01:25:00]}
{[%emt 00:02:43]} 12. Nd6 {[%clk 01:18:32]} {[%emt 00:05:07]} Bc6 {[%clk
01:22:41]} {[%emt 00:02:48]} 13. a3 {[%clk 01:18:38]} {[%emt 00:00:25]} Qd7
{[%clk 01:18:23]} {[%emt 00:04:48]} 14. e4 {[%clk 01:14:47]} {[%emt 00:04:20]}
Nc7 {[%clk 01:18:01]} {[%emt 00:00:53]} 15. Bf4 {[%clk 01:15:01]} {[%emt
00:00:14]} Rad8 {[%clk 01:13:54]} {[%emt 00:04:37]} 16. Qg4 {[%clk 01:14:07]}
{[%emt 00:01:24]} Bxd6 {[%clk 01:03:28]} {[%emt 00:10:57]} 17. exd6 {[%clk
01:13:58]} {[%emt 00:00:38]} Nb5 {[%clk 01:02:18]} {[%emt 00:01:41]} 18. e5
{[%clk 01:11:57]} {[%emt 00:02:31]} Bxg2 {[%clk 00:56:25]} {[%emt 00:06:22]} 19.
Kxg2 {[%clk 01:12:14]} {[%emt 00:00:14]} Nd4 {[%clk 00:56:32]} {[%emt
00:00:23]} 20. Rae1 {[%clk 01:09:42]} {[%emt 00:03:01]} Kh8 {[%clk 00:49:31]}
{[%emt 00:07:31]} 21. h4 {[%clk 01:09:35]} {[%emt 00:00:37]} Qb5 {[%clk
00:48:11]} {[%emt 00:01:50]} 22. Bg5 {[%clk 01:05:24]} {[%emt 00:04:41]} Rd7
{[%clk 00:45:44]} {[%emt 00:02:58]} 23. h5 {[%clk 00:59:13]} {[%emt 00:06:40]}
h6 {[%clk 00:43:04]} {[%emt 00:03:10]} 24. Bc1 {[%clk 00:58:58]} {[%emt
00:00:45]} Rc8 {[%clk 00:41:14]} {[%emt 00:02:21]} 25. Qe4 {[%clk 00:56:58]}
{[%emt 00:02:29]} Nb3 {[%clk 00:38:44]} {[%emt 00:03:00]} 26. Bf4 {[%clk
00:55:33]} {[%emt 00:01:54]} Nd4 {[%clk 00:35:32]} {[%emt 00:03:43]} 27. Bc1
{[%clk 00:53:33]} {[%emt 00:02:31]} Nb3 {[%clk 00:34:29]} {[%emt 00:01:33]} 28.
Be3 {[%clk 00:53:41]} {[%emt 00:00:21]} Na5 {[%clk 00:34:15]} {[%emt 00:00:45]}
29. Qc2 {[%clk 00:51:32]} {[%emt 00:02:38]} Nc4 {[%clk 00:33:03]} {[%emt
00:01:43]} 30. Bc1 {[%clk 00:51:46]} {[%emt 00:00:15]} Qc6+ {[%clk 00:32:00]}
{[%emt 00:01:33]} 31. f3 {[%clk 00:50:40]} {[%emt 00:01:35]} b5 {[%clk
00:30:54]} {[%emt 00:01:38]} 32. Qe4 {[%clk 00:50:30]} {[%emt 00:00:39]} Nb6
{[%clk 00:29:15]} {[%emt 00:02:10]} 33. Qxc6 {[%clk 00:49:22]} {[%emt
00:01:38]} Rxc6 {[%clk 00:29:29]} {[%emt 00:00:16]} 34. f4 {[%clk 00:49:40]}
{[%emt 00:00:11]} Kg8 {[%clk 00:26:35]} {[%emt 00:03:24]} 35. g4 {[%clk
00:49:20]} {[%emt 00:00:50]} c4 {[%clk 00:25:14]} {[%emt 00:01:52]} 36. Bd2
{[%clk 00:49:09]} {[%emt 00:00:40]} Na4 {[%clk 00:23:05]} {[%emt 00:02:39]} 37.
Bc3 {[%clk 00:49:17]} {[%emt 00:00:23]} Nc5 {[%clk 00:20:22]} {[%emt 00:03:13]}
38. Kf3 {[%clk 00:47:55]} {[%emt 00:01:51]} Nd3 {[%clk 00:19:49]} {[%emt
00:01:04]} 39. Re2 {[%clk 00:48:12]} {[%emt 00:00:12]} Kf8 {[%clk 00:16:08]}
{[%emt 00:04:11]} 40. Rg1 {[%clk 00:48:16]} {[%emt 00:00:27]} Rb7 {[%clk
00:15:59]} {[%emt 00:00:39]} 41. g5 {[%clk 00:48:01]} {[%emt 00:00:44]} b4
{[%clk 00:13:16]} {[%emt 00:03:13]} 42. axb4 {[%clk 00:48:19]} {[%emt
00:00:13]} Nxb4 {[%clk 00:13:28]} {[%emt 00:00:17]} 43. gxh6 {[%clk 00:48:40]}
{[%emt 00:00:08]} gxh6 {[%clk 00:13:16]} {[%emt 00:00:43]} 44. Reg2 {[%clk
00:48:49]} {[%emt 00:00:20]} Ke8 {[%clk 00:12:27]} {[%emt 00:01:20]} 45. Rg8+
{[%clk 00:48:54]} {[%emt 00:00:24]} Kd7 {[%clk 00:12:44]} {[%emt 00:00:14]} 46.
R1g7 {[%clk 00:49:04]} {[%emt 00:00:20]} Rcb6 {[%clk 00:12:06]} {[%emt
00:01:09]} 47. Rxf7+ {[%clk 00:48:15]} {[%emt 00:01:18]} Kc6 {[%clk 00:12:24]}
{[%emt 00:00:12]} 48. Rc8+ {[%clk 00:47:39]} {[%emt 00:01:06]} Kb5 {[%clk
00:11:00]} {[%emt 00:01:55]} 49. Bxb4 {[%clk 00:47:16]} {[%emt 00:00:52]} Rxf7
{[%clk 00:10:29]} {[%emt 00:01:01]} 50. Bc3 {[%clk 00:47:05]} {[%emt 00:00:42]}
Rbb7 {[%clk 00:07:47]} {[%emt 00:03:11]} 51. Re8 {[%clk 00:47:16]} {[%emt
00:00:18]} Rf5 {[%clk 00:07:33]} {[%emt 00:00:45]} 52. Rxe6 {[%clk 00:47:32]}
{[%emt 00:00:14]} Rxh5 {[%clk 00:06:49]} {[%emt 00:01:15]} 53. Re7 {[%clk
00:46:59]} {[%emt 00:01:02]} Kc6 {[%clk 00:06:28]} {[%emt 00:00:52]} 54. Rxb7
{[%clk 00:45:25]} {[%emt 00:02:03]} Kxb7 {[%clk 00:06:49]} {[%emt 00:00:10]} 55.
e6 {[%clk 00:45:37]} {[%emt 00:00:18]} Kc6 {[%clk 00:04:06]} {[%emt 00:03:13]}
56. d7 {[%clk 00:45:50]} {[%emt 00:00:16]} Kc7 {[%clk 00:03:50]} {[%emt
00:00:46]} 57. Ke4 {[%clk 00:45:48]} {[%emt 00:00:31]} a5 {[%clk 00:02:24]}
{[%emt 00:01:57]} 58. Bf6 {[%emt 00:02:07]} 1-0

[Event "Veteran-SM 65+ 2025"]
[Site "Uppsala, Sweden"]
[Date "2025.06.29"]
[Round "2.6"]
[White "Andersson, Anders"]
[Black "Pettersson, Lars-Ake"]
[Result "1-0"]
[TimeControl "90 min for 40 move + 30 min with an increment of 30 sec starting move 1"]
[WhiteFideId "1738259"]
[BlackFideId "1758225"]
[WhiteElo "1991"]
[BlackElo "1794"]

1. e4 {[%clk 01:30:56]} {[%emt 00:00:04]} c5 {[%clk 01:30:30]} {[%emt
00:00:30]} 2. Nf3 {[%clk 01:31:05]} {[%emt 00:00:20]} g6 {[%clk 01:30:48]}
{[%emt 00:00:12]} 3. Nc3 {[%clk 01:29:21]} {[%emt 00:02:15]} Nc6 {[%clk
01:27:40]} {[%emt 00:03:38]} 4. g3 {[%clk 01:26:30]} {[%emt 00:03:21]} Bg7
{[%clk 01:27:21]} {[%emt 00:00:49]} 5. Bg2 {[%clk 01:26:41]} {[%emt 00:00:19]}
d6 {[%clk 01:26:37]} {[%emt 00:01:14]} 6. O-O {[%clk 01:26:15]} {[%emt
00:00:56]} Nf6 {[%clk 01:26:49]} {[%emt 00:00:18]} 7. d3 {[%clk 01:24:27]}
{[%emt 00:02:18]} O-O {[%clk 01:26:24]} {[%emt 00:00:55]} 8. h3 {[%clk
01:23:34]} {[%emt 00:01:22]} Rb8 {[%clk 01:23:48]} {[%emt 00:03:07]} 9. a4
{[%clk 01:21:45]} {[%emt 00:02:18]} a6 {[%clk 01:23:17]} {[%emt 00:01:02]} 10.
Bd2 {[%clk 01:19:56]} {[%emt 00:02:19]} b5 {[%clk 01:19:11]} {[%emt 00:04:36]}
11. axb5 {[%clk 01:20:00]} {[%emt 00:00:26]} axb5 {[%clk 01:19:28]} {[%emt
00:00:13]} 12. Re1 {[%clk 01:13:24]} {[%emt 00:07:06]} b4 {[%clk 01:15:57]}
{[%emt 00:04:01]} 13. Nd5 {[%clk 01:08:54]} {[%emt 00:05:00]} e6 {[%clk
01:15:46]} {[%emt 00:00:41]} 14. Nxf6+ {[%clk 01:06:24]} {[%emt 00:03:00]} Bxf6
{[%clk 01:15:41]} {[%emt 00:00:35]} 15. c3 {[%clk 01:05:15]} {[%emt 00:01:39]}
bxc3 {[%clk 01:08:19]} {[%emt 00:07:52]} 16. bxc3 {[%clk 01:05:23]} {[%emt
00:00:21]} Bd7 {[%clk 01:04:06]} {[%emt 00:04:43]} 17. Qc2 {[%clk 01:02:51]}
{[%emt 00:03:03]} Qc7 {[%clk 00:59:39]} {[%emt 00:04:58]} 18. Nh2 {[%clk
00:58:45]} {[%emt 00:04:36]} Rfc8 {[%clk 00:59:35]} {[%emt 00:00:34]} 19. f4
{[%clk 00:52:36]} {[%emt 00:06:38]} e5 {[%clk 00:38:13]} {[%emt 00:21:51]} 20.
f5 {[%clk 00:44:19]} {[%emt 00:08:47]} gxf5 {[%clk 00:38:26]} {[%emt 00:00:18]}
21. exf5 {[%clk 00:44:39]} {[%emt 00:00:10]} c4 {[%clk 00:33:49]} {[%emt
00:05:07]} 22. g4 {[%clk 00:40:15]} {[%emt 00:04:53]} Qb6+ {[%clk 00:32:13]}
{[%emt 00:02:08]} 23. Be3 {[%clk 00:39:29]} {[%emt 00:01:15]} Qb2 {[%clk
00:32:20]} {[%emt 00:00:24]} 24. Qxb2 {[%clk 00:38:14]} {[%emt 00:01:44]} Rxb2
{[%clk 00:32:47]} 25. dxc4 {[%clk 00:38:02]} {[%emt 00:00:45]} Rc2 {[%clk
00:27:51]} {[%emt 00:05:26]} 26. Rac1 {[%clk 00:36:21]} {[%emt 00:02:12]} Rxc1
{[%clk 00:27:52]} {[%emt 00:00:29]} 27. Rxc1 {[%clk 00:36:42]} {[%emt
00:00:08]} Na5 {[%clk 00:27:58]} {[%emt 00:00:25]} 28. c5 {[%clk 00:27:20]}
{[%emt 00:09:51]} dxc5 {[%clk 00:26:05]} {[%emt 00:02:23]} 29. Nf3 {[%clk
00:24:55]} {[%emt 00:02:55]} Nc4 {[%clk 00:26:12]} {[%emt 00:00:23]} 30. Bh6
{[%clk 00:24:44]} {[%emt 00:00:41]} Bg7 {[%clk 00:22:22]} {[%emt 00:04:20]} 31.
Bxg7 {[%clk 00:22:57]} {[%emt 00:02:17]} Kxg7 {[%clk 00:22:51]} {[%emt
00:00:02]} 32. Bf1 {[%clk 00:23:06]} {[%emt 00:00:19]} Bc6 {[%clk 00:21:27]}
{[%emt 00:01:55]} 33. Kf2 {[%clk 00:21:11]} {[%emt 00:02:25]} e4 {[%clk
00:18:31]} {[%emt 00:03:26]} 34. Bxc4 {[%clk 00:18:52]} {[%emt 00:02:50]} exf3
{[%clk 00:18:55]} {[%emt 00:00:06]} 35. Rd1 {[%clk 00:17:21]} {[%emt 00:02:00]}
Rb8 {[%clk 00:16:37]} {[%emt 00:02:48]} 36. Bd5 {[%clk 00:17:11]} {[%emt
00:00:40]} Bxd5 {[%clk 00:11:26]} {[%emt 00:05:42]} 37. Rxd5 {[%clk 00:17:28]}
{[%emt 00:00:12]} Rc8 {[%clk 00:08:49]} {[%emt 00:03:07]} 38. Kxf3 {[%clk
00:16:13]} {[%emt 00:01:45]} Rc6 {[%clk 00:09:04]} {[%emt 00:00:15]} 39. Kf4
{[%clk 00:15:39]} {[%emt 00:01:03]} h6 {[%clk 00:09:28]} {[%emt 00:00:06]} 40.
Ke5 {[%clk 00:14:42]} {[%emt 00:01:28]} c4 {[%clk 00:08:19]} {[%emt 00:01:40]}
41. Kd4 {[%clk 00:13:26]} {[%emt 00:01:45]} Kf6 {[%clk 00:04:37]} {[%emt
00:04:11]} 42. Rc5 {[%clk 00:12:06]} {[%emt 00:01:50]} Rd6+ {[%clk 00:04:48]}
{[%emt 00:00:20]} 43. Kxc4 {[%clk 00:12:11]} {[%emt 00:00:25]} Rd1 {[%clk
00:04:03]} {[%emt 00:01:15]} 44. Rd5 {[%clk 00:11:56]} {[%emt 00:00:44]} Rh1
{[%clk 00:03:56]} {[%emt 00:00:38]} 45. Rd3 {[%clk 00:11:15]} {[%emt 00:01:11]}
h5 {[%clk 00:03:56]} {[%emt 00:00:30]} 46. gxh5 {[%clk 00:03:03]} {[%emt
00:08:41]} Kxf5 {[%clk 00:04:22]} {[%emt 00:00:06]} 47. Rf3+ {[%clk 00:03:14]}
{[%emt 00:00:18]} Ke4 {[%clk 00:04:10]} {[%emt 00:00:42]} 48. Rxf7 {[%clk
00:02:01]} {[%emt 00:01:43]} Rxh3 {[%clk 00:04:35]} {[%emt 00:00:05]} 49. Rh7
{[%clk 00:01:59]} {[%emt 00:00:32]} Ke5 {[%clk 00:04:44]} {[%emt 00:00:21]} 50.
Rd7 {[%clk 00:27:35]} {[%emt 00:04:54]} Ke6 {[%clk 00:32:03]} {[%emt 00:03:12]}
51. Rd5 {[%clk 00:27:10]} {[%emt 00:00:54]} Rh4+ {[%emt 00:01:20]} 52. Kc5
{[%emt 00:00:19]} Rh3 {[%clk 00:30:04]} {[%emt 00:00:50]} 53. c4 {[%clk
00:27:26]} {[%emt 00:00:14]} Rh4 {[%clk 00:29:56]} {[%emt 00:00:37]} 54. Rd6+
{[%clk 00:26:34]} {[%emt 00:01:23]} Ke7 {[%clk 00:30:09]} {[%emt 00:00:16]} 55.
h6 {[%clk 00:26:39]} {[%emt 00:00:25]} Ke8 {[%clk 00:29:23]} {[%emt 00:01:17]}
56. Kd5 {[%clk 00:26:06]} {[%emt 00:01:03]} Ke7 {[%clk 00:29:09]} {[%emt
00:00:44]} 57. c5 {[%clk 00:26:13]} {[%emt 00:00:23]} Rxh6 {[%emt 00:02:04]}
1-0